fUST/lending_fUST_20251203
["ID","MTS","AMOUNT","RATE_DAILY","PERIOD"]
[395528561,1764700274969,-1142.87,0.0001452,2]
[395528563,1764700274980,-500.0,0.0001452,2]
[395528565,1764700274989,-1457.82,0.0001452,2]
[395528567,1764700274999,-915.82,0.0001452,2]
[395528569,1764700275009,-500.0,0.0001452,2]
[395528571,1764700275019,-506.87115254,0.0001452,2]
[395528573,1764700275030,-511.15722017,0.0001452,2]
[395528575,1764700275040,-500.0,0.0001452,2]
[395528577,1764700275049,-500.0,0.0001452,2]
[395528579,1764700275059,-2661.54,0.0001452,2]
[395528581,1764700275069,-500.0,0.0001452,2]
[395528583,1764700275079,-500.0,0.0001452,2]
[395528585,1764700275089,-1935.63,0.0001452,2]
[395528587,1764700275099,-1134.19,0.0001452,2]
[395528589,1764700275109,-899.26,0.0001452,2]
[395528591,1764700275118,-500.0,0.0001452,2]
[395528593,1764700275129,-959.04,0.0001452,2]
[395528595,1764700275141,-500.0,0.0001452,2]
[395528597,1764700275151,-1017.99,0.0001452,2]
[395528599,1764700275161,-436.14685073,0.0001452,2]
[395528601,1764700275171,-504.13565308,0.0001452,2]
[395528603,1764700275180,-706.02,0.0001452,2]
[395528605,1764700275189,-1153.44,0.0001452,2]
[395528607,1764700275201,-543.33969513,0.0001452,2]
[395528609,1764700275213,-505.30973513,0.0001452,2]
[395528611,1764700275222,-500.0,0.0001452,2]
[395528613,1764700275231,-2278.79,0.0001452,2]
[395528615,1764700275241,-1463.33,0.0001452,2]
[395528617,1764700275251,-975.51,0.0001452,2]
[395528619,1764700275260,-3510.59,0.0001452,2]
[395528621,1764700275269,-507.48463874,0.0001452,2]
[395528623,1764700275279,-500.0,0.0001452,2]
[395528625,1764700275288,-1318.57,0.0001452,2]
[395528627,1764700275297,-658.21,0.0001452,2]
[395528629,1764700275307,-724.89,0.0001452,2]
[395528631,1764700275317,-500.0,0.0001452,2]
[395528633,1764700275327,-503.01581343,0.0001452,2]
[395528635,1764700275336,-1604.84,0.0001452,2]
[395528637,1764700275345,-500.0,0.0001452,2]
[395528639,1764700275354,-2443.05,0.0001452,2]
[395528641,1764700275364,-1692.26,0.0001452,2]
[395528643,1764700275373,-604.45220373,0.0001452,2]
[395528645,1764700275383,-800.7,0.0001452,2]
[395528647,1764700275393,-6638.44,0.0001452,2]
[395528649,1764700275403,-693.36,0.0001452,2]
[395528651,1764700275412,-1081.66,0.0001452,2]
[395528653,1764700275422,-1134.95,0.0001452,2]
[395528655,1764700275431,-1470.65,0.0001452,2]
[395528658,1764700275441,-500.0,0.0001452,2]
[395528660,1764700275451,-709.13,0.0001452,2]
[395528662,1764700275461,-659.35,0.0001452,2]
[395528664,1764700275471,-500.0,0.0001452,2]
[395528666,1764700275480,-500.0,0.0001452,2]
[395528668,1764700275490,-500.0,0.0001452,2]
[395528670,1764700275499,-500.0,0.0001452,2]
[395528672,1764700275509,-1437.01,0.0001452,2]
[395528674,1764700275518,-2076.76,0.0001452,2]
[395528676,1764700275527,-5782.36,0.0001452,2]
[395528678,1764700275537,-1358.8,0.0001452,2]
[395528680,1764700275546,-692.47,0.0001452,2]
[395528682,1764700275556,-802.64,0.0001452,2]
[395528684,1764700275565,-810.54,0.0001452,2]
[395528686,1764700275575,-975.44,0.0001452,2]
[395528688,1764700275584,-500.0,0.0001452,2]
[395528690,1764700275593,-917.05,0.0001452,2]
[395528692,1764700275603,-500.0,0.0001452,2]
[395528694,1764700275613,-500.0,0.0001452,2]
[395528696,1764700275622,-500.0,0.0001452,2]
[395528698,1764700275631,-1542.69,0.0001452,2]
[395528700,1764700275641,-1337.53,0.0001452,2]
[395528702,1764700275650,-744.29,0.0001452,2]
[395528704,1764700275659,-1929.03,0.0001452,2]
[395528706,1764700275669,-811.34,0.0001452,2]
[395528708,1764700275679,-500.0,0.0001452,2]
[395528710,1764700275688,-500.0,0.0001452,2]
[395528712,1764700275699,-567.04,0.0001452,2]
[395528714,1764700275708,-989.76,0.0001452,2]
[395528716,1764700275718,-7095.35,0.0001452,2]
[395528718,1764700275727,-500.0,0.0001452,2]
[395528719,1764700275736,-1182.79,0.0001452,2]
[395528722,1764700275747,-1204.25,0.0001452,2]
[395528723,1764700275757,-912.9,0.0001452,2]
[395528726,1764700275767,-500.0,0.0001452,2]
[395528728,1764700275777,-1091.06,0.0001452,2]
[395528730,1764700275787,-918.29,0.0001452,2]
[395528732,1764700275796,-500.0,0.0001452,2]
[395528734,1764700275808,-500.0,0.0001452,2]
[395528736,1764700275818,-835.94,0.0001452,2]
[395528738,1764700275827,-500.0,0.0001452,2]
[395528740,1764700275837,-619.94,0.0001452,2]
[395528742,1764700275847,-500.0,0.0001452,2]
[395528744,1764700275858,-780.65,0.0001452,2]
[395528746,1764700275868,-500.0,0.0001452,2]
[395528748,1764700275878,-500.0,0.0001452,2]
[395528750,1764700275888,-500.0,0.0001452,2]
[395528752,1764700275900,-1453.53,0.0001452,2]
[395528754,1764700275912,-500.0,0.0001452,2]
[395528756,1764700275924,-654.87,0.0001452,2]
[395528758,1764700275934,-504.55619156,0.0001452,2]
[395528760,1764700275944,-2130.53,0.0001452,2]
[395528762,1764700275954,-4391.85,0.0001452,2]
[395528764,1764700275967,-500.0,0.0001452,2]
[395528766,1764700275977,-500.0,0.0001452,2]
[395528768,1764700275987,-3348.12,0.0001452,2]
[395528770,1764700275996,-1296.64,0.0001452,2]
[395528772,1764700276006,-500.0,0.0001452,2]
[395528774,1764700276016,-528.78861453,0.0001452,2]
[395528776,1764700276027,-1347.62,0.0001452,2]
[395528778,1764700276036,-1302.34,0.0001452,2]
[395528781,1764700276047,-500.0,0.0001452,2]
[395528783,1764700276057,-500.0,0.0001452,2]
[395528785,1764700276067,-741.45,0.0001452,2]
[395528787,1764700276076,-500.0,0.0001452,2]
[395528789,1764700276085,-703.29,0.0001452,2]
[395528791,1764700276095,-500.0,0.0001452,2]
[395528793,1764700276104,-500.0,0.0001452,2]
[395528795,1764700276114,-3107.02,0.0001452,2]
[395528796,1764700276124,-500.0,0.0001452,2]
[395528799,1764700276139,-3100.21,0.0001452,2]
[395528801,1764700276152,-500.0,0.0001452,2]
[395528803,1764700276163,-500.0,0.0001452,2]
[395528805,1764700276172,-819.83,0.0001452,2]
[395528807,1764700276181,-500.0,0.0001452,2]
[395528809,1764700276191,-500.0,0.0001452,2]
[395528811,1764700276201,-500.0,0.0001452,2]
[395528813,1764700276215,-500.0,0.0001452,2]
[395528815,1764700276225,-501.36031891,0.0001452,2]
[395528817,1764700276235,-500.0,0.0001452,2]
[395528819,1764700276245,-500.0,0.0001452,2]
[395528821,1764700276254,-500.0,0.0001452,2]
[395528823,1764700276263,-500.0,0.0001452,2]
[395528825,1764700276272,-500.0,0.0001452,2]
[395528827,1764700276281,-1685.38,0.0001452,2]
[395528829,1764700276291,-758.24,0.0001452,2]
[395528831,1764700276300,-500.0,0.0001452,2]
[395528833,1764700276309,-1302.06,0.0001452,2]
[395528835,1764700276319,-539.01,0.0001452,2]
[395528837,1764700276329,-500.0,0.0001452,2]
[395528839,1764700276338,-500.0,0.0001452,2]
[395528841,1764700276347,-978.33,0.0001452,2]
[395528843,1764700276356,-1527.03,0.0001452,2]
[395528845,1764700276365,-506.79002235,0.0001452,2]
[395528847,1764700276373,-5315.98,0.0001452,2]
[395528849,1764700276382,-500.0,0.0001452,2]
[395528851,1764700276391,-500.0,0.0001452,2]
[395528853,1764700276400,-1275.67,0.0001452,2]
[395528855,1764700276410,-1340.01,0.0001452,2]
[395528857,1764700276420,-500.0,0.0001452,2]
[395528860,1764700276430,-840.94,0.0001452,2]
[395528862,1764700276439,-500.0,0.0001452,2]
[395528864,1764700276449,-500.0,0.0001452,2]
[395528866,1764700276460,-500.0,0.0001452,2]
[395528868,1764700276469,-500.0,0.0001452,2]
[395528869,1764700276478,-1356.24,0.0001452,2]
[395528871,1764700276487,-500.0,0.0001452,2]
[395528873,1764700276496,-501.81832985,0.0001452,2]
[395528875,1764700276505,-510.72,0.0001452,2]
[395528877,1764700276515,-745.97,0.0001452,2]
[395528879,1764700276525,-500.0,0.0001452,2]
[395528881,1764700276534,-1054.46,0.0001452,2]
[395528883,1764700276543,-500.0,0.0001452,2]
[395528885,1764700276552,-500.0,0.0001452,2]
[395528888,1764700276565,-500.0,0.00014521,2]
[395528890,1764700276575,-802.0,0.00014548,2]
[395528892,1764700276585,-500.0,0.00014573,2]
[395528894,1764700276596,-217.15233878,0.00014681,2]
[395528896,1764700276606,-587.0,0.00014704,2]
[395528897,1764700276617,-100000.0,0.00014736,2]
[395528900,1764700276626,-2872.185808,0.00014794,2]
[395528901,1764700276636,-500.0,0.00014794,2]
[395528903,1764700276646,-500.0,0.00014794,2]
[395528905,1764700276655,-500.0,0.00014794,2]
[395528907,1764700276664,-500.0,0.00014794,2]
[395528909,1764700276674,-500.0,0.00014794,2]
[395528911,1764700276683,-500.0,0.00014794,2]
[395528913,1764700276693,-500.0,0.00014794,2]
[395528915,1764700276704,-503.11389381,0.00014794,2]
[395528918,1764700276716,-500.0,0.00014794,2]
[395528919,1764700276726,-500.0,0.00014794,2]
[395528922,1764700276735,-822.86,0.00014794,2]
[395528924,1764700276745,-690.16,0.00014794,2]
[395528926,1764700276755,-500.0,0.00014794,2]
[395528928,1764700276764,-944.82,0.00014794,2]
[395528930,1764700276774,-500.0,0.00014794,2]
[395528937,1764700276833,-500.0,0.00014794,2]
[395528939,1764700276842,-1072.55,0.00014794,2]
[395528941,1764700276852,-500.0,0.00014794,2]
[395528943,1764700276862,-500.0,0.00014794,2]
[395528945,1764700276871,-503.3111889,0.00014794,2]
[395528947,1764700276880,-500.0,0.00014794,2]
[395528949,1764700276890,-500.0,0.00014794,2]
[395528952,1764700276900,-599.59,0.00014794,2]
[395528954,1764700276911,-500.0,0.00014794,2]
[395528955,1764700276921,-500.0,0.00014794,2]
[395528958,1764700276931,-500.0,0.00014794,2]
[395528960,1764700276942,-500.0,0.00014794,2]
[395528962,1764700276952,-501.42001747,0.00014794,2]
[395528964,1764700276964,-500.0,0.00014794,2]
[395528966,1764700276975,-500.0,0.00014794,2]
[395528968,1764700276984,-500.0,0.00014794,2]
[395528970,1764700276994,-500.0,0.00014794,2]
[395528972,1764700277004,-886.13,0.00014794,2]
[395528974,1764700277013,-623.2,0.00014794,2]
[395528976,1764700277023,-500.0,0.00014794,2]
[395528978,1764700277033,-527.3842863,0.00014794,2]
[395528980,1764700277042,-500.0,0.00014794,2]
[395528982,1764700277051,-911.67,0.00014794,2]
[395528984,1764700277060,-500.0,0.00014794,2]
[395528986,1764700277070,-511.45127864,0.00014794,2]
[395528988,1764700277078,-503.54521457,0.00014794,2]
[395528990,1764700277087,-500.0,0.00014794,2]
[395528992,1764700277096,-954.32,0.00014794,2]
[395528994,1764700277106,-500.0,0.00014794,2]
[395528996,1764700277115,-500.0,0.00014794,2]
[395528998,1764700277125,-500.0,0.00014794,2]
[395528999,1764700277139,-500.0,0.00014794,2]
[395529002,1764700277150,-500.0,0.00014794,2]
[395529004,1764700277160,-500.0,0.00014794,2]
[395529006,1764700277171,-500.0,0.00014794,2]
[395529007,1764700277180,-500.0,0.00014794,2]
[395529009,1764700277190,-500.0,0.00014794,2]
[395529012,1764700277200,-500.0,0.00014794,2]
[395529013,1764700277216,-621.63,0.00014794,2]
[395529015,1764700277225,-500.0,0.00014794,2]
[395529017,1764700277235,-500.0,0.00014794,2]
[395529019,1764700277245,-500.0,0.00014794,2]
[395529021,1764700277254,-504.28831498,0.00014794,2]
[395529023,1764700277263,-500.0,0.00014794,2]
[395529025,1764700277272,-1280.13,0.00014794,2]
[395529027,1764700277282,-524.35,0.00014794,2]
[395529029,1764700277292,-861.06,0.00014794,2]
[395529031,1764700277300,-1138.79,0.00014794,2]
[395529033,1764700277310,-500.0,0.00014794,2]
[395529035,1764700277319,-500.0,0.00014794,2]
[395529037,1764700277328,-500.0,0.00014794,2]
[395529039,1764700277338,-500.0,0.00014794,2]
[395529041,1764700277347,-500.0,0.00014794,2]
[395529043,1764700277356,-500.0,0.00014794,2]
[395529045,1764700277366,-500.0,0.00014794,2]
[395529047,1764700277375,-1442.93,0.00014794,2]
[395529049,1764700277384,-500.0,0.00014794,2]
[395529051,1764700277394,-500.0,0.00014794,2]
[395529053,1764700277403,-500.0,0.00014794,2]
[395529055,1764700277412,-743.32,0.00014794,2]
[395529057,1764700277421,-1286.19,0.00014794,2]
[395529059,1764700277430,-500.0,0.00014794,2]
[395529061,1764700277440,-500.0,0.00014794,2]
[395529063,1764700277450,-500.0,0.00014794,2]
[395529065,1764700277459,-500.0,0.00014794,2]
[395529067,1764700277470,-501.81909381,0.00014794,2]
[395529069,1764700277480,-501.26564254,0.00014794,2]
[395529071,1764700277490,-500.0,0.00014794,2]
[395529073,1764700277504,-994.38,0.00014794,2]
[395529076,1764700277521,-501.93542236,0.00014794,2]
[395529078,1764700277534,-500.0,0.00014794,2]
[395529080,1764700277546,-500.0,0.00014794,2]
[395529082,1764700277557,-500.0,0.00014794,2]
[395529083,1764700277568,-1207.07,0.00014794,2]
[395529086,1764700277577,-547.67,0.00014794,2]
[395529088,1764700277588,-500.0,0.00014794,2]
[395529090,1764700277599,-500.0,0.00014794,2]
[395529092,1764700277608,-558.71123834,0.00014794,2]
[395529094,1764700277618,-500.0,0.00014794,2]
[395529096,1764700277628,-500.0,0.00014794,2]
[395529098,1764700277638,-643.84,0.00014794,2]
[395529100,1764700277648,-500.0,0.00014794,2]
[395529102,1764700277657,-500.0,0.00014794,2]
[395529104,1764700277667,-500.0,0.00014794,2]
[395529106,1764700277677,-736.5,0.00014794,2]
[395529108,1764700277686,-787.24,0.00014794,2]
[395529110,1764700277695,-500.0,0.00014794,2]
[395529112,1764700277705,-655.37,0.00014794,2]
[395529114,1764700277718,-500.0,0.00014794,2]
[395529116,1764700277728,-503.73834083,0.00014794,2]
[395529118,1764700277740,-500.0,0.00014794,2]
[395529120,1764700277751,-505.69776805,0.00014794,2]
[395529122,1764700277761,-500.0,0.00014794,2]
[395529124,1764700277771,-777.22,0.00014794,2]
[395529126,1764700277781,-717.18,0.00014794,2]
[395529128,1764700277791,-500.0,0.00014794,2]
[395529130,1764700277801,-642.97,0.00014794,2]
[395529132,1764700277811,-500.0,0.00014794,2]
[395529134,1764700277821,-682.99,0.00014794,2]
[395529136,1764700277830,-504.26870532,0.00014794,2]
[395529138,1764700277839,-500.0,0.00014794,2]
[395529140,1764700277850,-500.0,0.00014794,2]
[395529141,1764700277859,-500.0,0.00014794,2]
[395529144,1764700277869,-500.0,0.00014794,2]
[395529146,1764700277883,-500.0,0.00014794,2]
[395529147,1764700277894,-500.0,0.00014794,2]
[395529149,1764700277904,-500.0,0.00014794,2]
[395529151,1764700277914,-500.0,0.00014794,2]
[395529153,1764700277925,-500.0,0.00014794,2]
[395529155,1764700277934,-1300.6,0.00014794,2]
[395529157,1764700277943,-1234.64,0.00014794,2]
[395529159,1764700277954,-998.85,0.00014794,2]
[395529161,1764700277965,-500.0,0.00014794,2]
[395529163,1764700277974,-500.0,0.00014794,2]
[395529165,1764700277983,-500.0,0.00014794,2]
[395529166,1764700277992,-663.37,0.00014794,2]
[395529167,1764700278001,-500.0,0.00014794,2]
[395529168,1764700278010,-500.0,0.00014794,2]
[395529169,1764700278019,-500.0,0.00014794,2]
[395529170,1764700278027,-1874.34,0.00014794,2]
[395529171,1764700278036,-500.0,0.00014794,2]
[395529172,1764700278046,-500.0,0.00014794,2]
[395529173,1764700278055,-500.0,0.00014794,2]
[395529174,1764700278063,-500.0,0.00014794,2]
[395529175,1764700278073,-500.0,0.00014794,2]
[395529176,1764700278081,-500.0,0.00014794,2]
[395529177,1764700278090,-1323.39,0.00014794,2]
[395529178,1764700278099,-1022.46,0.00014794,2]
[395529179,1764700278108,-500.0,0.00014794,2]
[395529180,1764700278117,-500.0,0.00014794,2]
[395529182,1764700278127,-680.39,0.00014794,2]
[395529183,1764700278140,-705.84,0.00014794,2]
[395529185,1764700278151,-504.96953989,0.00014794,2]
[395529187,1764700278160,-1214.22,0.00014794,2]
[395529189,1764700278170,-500.0,0.00014794,2]
[395529191,1764700278178,-500.0,0.00014794,2]
[395529193,1764700278187,-1015.56,0.00014794,2]
[395529195,1764700278197,-500.0,0.00014794,2]
[395529197,1764700278208,-500.0,0.00014794,2]
[395529199,1764700278220,-500.0,0.00014794,2]
[395529201,1764700278229,-508.24,0.00014794,2]
[395529203,1764700278237,-500.0,0.00014794,2]
[395529205,1764700278246,-500.0,0.00014794,2]
[395529207,1764700278256,-500.0,0.00014794,2]
[395529209,1764700278265,-1441.93,0.00014794,2]
[395529211,1764700278275,-503.27114189,0.00014794,2]
[395529213,1764700278283,-682.71,0.00014794,2]
[395529215,1764700278292,-1368.61,0.00014794,2]
[395529216,1764700278301,-551.2054255,0.00014794,2]
[395529218,1764700278311,-500.0,0.00014794,2]
[395529220,1764700278320,-503.65502146,0.00014794,2]
[395529222,1764700278331,-627.35,0.00014794,2]
[395529224,1764700278341,-500.0,0.00014794,2]
[395529226,1764700278350,-896.16,0.00014794,2]
[395529228,1764700278359,-500.0,0.00014794,2]
[395529230,1764700278368,-500.0,0.00014794,2]
[395529232,1764700278377,-500.0,0.00014794,2]
[395529234,1764700278386,-851.71,0.00014794,2]
[395529236,1764700278395,-500.0,0.00014794,2]
[395529238,1764700278406,-982.64,0.00014794,2]
[395529240,1764700278416,-2168.86,0.00014794,2]
[395529242,1764700278425,-837.95,0.00014794,2]
[395529244,1764700278435,-503.13658445,0.00014794,2]
[395529246,1764700278444,-500.0,0.00014794,2]
[395529248,1764700278454,-1863.03,0.00014794,2]
[395529250,1764700278466,-500.0,0.00014794,2]
[395529252,1764700278475,-1472.77,0.00014794,2]
[395529254,1764700278485,-784.97,0.00014794,2]
[395529256,1764700278495,-500.0,0.00014794,2]
[395529258,1764700278504,-500.0,0.00014794,2]
[395529260,1764700278513,-500.0,0.00014794,2]
[395529262,1764700278522,-503.32873759,0.00014794,2]
[395529264,1764700278531,-697.16,0.00014794,2]
[395529266,1764700278540,-500.0,0.00014794,2]
[395529268,1764700278549,-1013.11,0.00014794,2]
[395529270,1764700278559,-503.67,0.00014794,2]
[395529272,1764700278568,-500.0,0.00014794,2]
[395529274,1764700278577,-500.0,0.00014794,2]
[395529276,1764700278586,-500.0,0.00014794,2]
[395529278,1764700278595,-500.0,0.00014794,2]
[395529280,1764700278604,-500.0,0.00014794,2]
[395529282,1764700278614,-500.0,0.00014794,2]
[395529284,1764700278624,-345.74282479,0.00014794,2]
[395529286,1764700278633,-500.0,0.00014794,2]
[395529288,1764700278643,-483.18404608,0.00014794,2]
[395529290,1764700278652,-500.0,0.00014794,2]
[395529293,1764700278663,-719.86,0.00014794,2]
[395529295,1764700278673,-582.91,0.00014794,2]
[395529297,1764700278682,-500.0,0.00014794,2]
[395529299,1764700278691,-500.0,0.00014794,2]
[395529301,1764700278702,-500.0,0.00014794,2]
[395529302,1764700278713,-500.0,0.00014794,2]
[395529305,1764700278723,-500.0,0.00014794,2]
[395529307,1764700278733,-500.0,0.00014794,2]
[395529309,1764700278743,-1792.88,0.00014794,2]
[395529311,1764700278754,-1891.68,0.00014794,2]
[395529313,1764700278765,-1227.22,0.00014794,2]
[395529315,1764700278775,-1823.85,0.00014794,2]
[395529317,1764700278784,-847.98,0.00014794,2]
[395529319,1764700278794,-966.59,0.00014794,2]
[395529321,1764700278804,-500.0,0.00014794,2]
[395529323,1764700278813,-1668.64,0.00014794,2]
[395529325,1764700278823,-500.0,0.00014794,2]
[395529327,1764700278832,-510.91380069,0.00014794,2]
[395529329,1764700278841,-616.11,0.00014794,2]
[395529331,1764700278851,-500.0,0.00014794,2]
[395529333,1764700278860,-500.0,0.00014794,2]
[395529335,1764700278869,-500.0,0.00014794,2]
[395529337,1764700278878,-582.84,0.00014794,2]
[395529339,1764700278888,-1831.7,0.00014794,2]
[395529341,1764700278897,-1002.62,0.00014794,2]
[395529343,1764700278907,-500.0,0.00014794,2]
[395529345,1764700278916,-1375.89,0.00014794,2]
[395529347,1764700278926,-510.17,0.00014794,2]
[395529349,1764700278935,-500.0,0.00014794,2]
[395529351,1764700278945,-500.0,0.00014794,2]
[395529353,1764700278954,-1425.0,0.00014794,2]
[395529355,1764700278967,-645.65,0.00014794,2]
[395529357,1764700278976,-625.42,0.00014794,2]
[395529359,1764700278985,-988.15,0.00014794,2]
[395529361,1764700278995,-500.0,0.00014794,2]
[395529363,1764700279004,-566.53,0.00014794,2]
[395529365,1764700279013,-500.0,0.00014794,2]
[395529367,1764700279023,-500.0,0.00014794,2]
[395529369,1764700279033,-500.0,0.00014794,2]
[395529371,1764700279042,-500.0,0.00014794,2]
[395529373,1764700279052,-500.0,0.00014794,2]
[395529375,1764700279062,-993.17,0.00014794,2]
[395529377,1764700279071,-500.0,0.00014794,2]
[395529379,1764700279081,-500.0,0.00014794,2]
[395529381,1764700279091,-500.0,0.00014794,2]
[395529383,1764700279101,-500.0,0.00014794,2]
[395529385,1764700279110,-721.42,0.00014794,2]
[395529387,1764700279120,-1322.83,0.00014794,2]
[395529389,1764700279133,-782.52,0.00014794,2]
[395529391,1764700279142,-500.0,0.00014794,2]
[395529393,1764700279152,-500.0,0.00014794,2]
[395529395,1764700279162,-772.11,0.00014794,2]
[395529397,1764700279172,-172.20822998,0.00014794,2]
[395529399,1764700279181,-616.53,0.00014794,2]
[395529401,1764700279190,-1121.31,0.00014794,2]
[395529403,1764700279199,-500.0,0.00014794,2]
[395529405,1764700279211,-1436.21,0.00014794,2]
[395529407,1764700279224,-638.45,0.00014794,2]
[395529409,1764700279233,-500.0,0.00014794,2]
[395529411,1764700279242,-500.0,0.00014794,2]
[395529413,1764700279252,-500.0,0.00014794,2]
[395529415,1764700279262,-500.0,0.00014794,2]
[395529417,1764700279272,-573.67,0.00014794,2]
[395529419,1764700279281,-1022.84,0.00014794,2]
[395529421,1764700279291,-880.72,0.00014794,2]
[395529423,1764700279300,-500.0,0.00014794,2]
[395529425,1764700279311,-1113.83,0.00014794,2]
[395529427,1764700279321,-500.0,0.00014794,2]
[395529429,1764700279330,-901.12,0.00014794,2]
[395529431,1764700279340,-1158.18,0.00014794,2]
[395529433,1764700279349,-563.34,0.00014794,2]
[395529435,1764700279359,-500.0,0.00014794,2]
[395529437,1764700279370,-172.74732132,0.00014794,2]
[395529439,1764700279381,-500.0,0.00014794,2]
[395529441,1764700279393,-946.95,0.00014794,2]
[395529443,1764700279407,-523.1,0.00014794,2]
[395529445,1764700279420,-502.36217771,0.00014794,2]
[395529448,1764700279430,-505.32227315,0.00014794,2]
[395529450,1764700279440,-684.46,0.00014794,2]
[395529452,1764700279450,-930.17,0.00014794,2]
[395529453,1764700279459,-500.0,0.00014794,2]
[395529455,1764700279470,-500.0,0.00014794,2]
[395529457,1764700279479,-500.0,0.00014794,2]
[395529459,1764700279490,-500.0,0.00014794,2]
[395529462,1764700279499,-500.0,0.00014794,2]
[395529463,1764700279508,-1234.72,0.00014794,2]
[395529466,1764700279518,-998.08,0.00014794,2]
[395529468,1764700279528,-1048.81,0.00014794,2]
[395529470,1764700279537,-500.0,0.00014794,2]
[395529472,1764700279547,-500.0,0.00014794,2]
[395529474,1764700279556,-500.0,0.00014794,2]
[395529476,1764700279566,-500.0,0.00014794,2]
[395529478,1764700279576,-500.0,0.00014794,2]
[395529480,1764700279585,-665.63,0.00014794,2]
[395529482,1764700279595,-500.0,0.00014794,2]
[395529484,1764700279605,-841.24,0.00014794,2]
[395529486,1764700279615,-1376.14,0.00014794,2]
[395529488,1764700279624,-500.0,0.00014794,2]
[395529490,1764700279633,-500.0,0.00014794,2]
[395529492,1764700279644,-409.61980947,0.00014794,2]
[395529494,1764700279656,-1310.97,0.00014794,2]
[395529496,1764700279666,-574.65369749,0.00014794,2]
[395529498,1764700279676,-500.0,0.00014794,2]
[395529500,1764700279686,-500.0,0.00014794,2]
[395529502,1764700279696,-954.75,0.00014794,2]
[395529504,1764700279705,-500.0,0.00014794,2]
[395529506,1764700279716,-537.94590968,0.00014794,2]
[395529508,1764700279726,-541.5130733,0.00014794,2]
[395529510,1764700279736,-500.0,0.00014794,2]
[395529512,1764700279745,-1672.25,0.00014794,2]
[395529514,1764700279754,-500.0,0.00014794,2]
[395529516,1764700279763,-646.78,0.00014794,2]
[395529518,1764700279773,-500.0,0.00014794,2]
[395529520,1764700279783,-500.0,0.00014794,2]
[395529522,1764700279793,-500.0,0.00014794,2]
[395529524,1764700279803,-549.78,0.00014794,2]
[395529526,1764700279813,-635.02,0.00014794,2]
[395529528,1764700279823,-666.2,0.00014794,2]
[395529530,1764700279833,-2392.84,0.00014794,2]
[395529533,1764700279843,-4019.58,0.00014794,2]
[395529535,1764700279853,-834.95,0.00014794,2]
[395529537,1764700279863,-500.0,0.00014794,2]
[395529539,1764700279873,-1131.23,0.00014794,2]
[395529540,1764700279885,-500.0,0.00014794,2]
[395529543,1764700279895,-590.03,0.00014794,2]
[395529545,1764700279906,-500.0,0.00014794,2]
[395529547,1764700279916,-679.74,0.00014794,2]
[395529549,1764700279926,-1261.89,0.00014794,2]
[395529550,1764700279935,-1502.27,0.00014794,2]
[395529552,1764700279945,-1176.24,0.00014794,2]